Cogmind - Beta 9.6 @@@ ROGUE MODE // 2020.09.01 @ 21:32:44 Player: aoemica Result: Destroyed by DAS Turret with DAS Cannon Performance ------------- Evolutions (1) 500 Regions Visited (5) 1000 Robots Destroyed (78) 390 Value Destroyed (1650) 1650 Prototype IDs (32) 640 Alien Tech Used (0) 0 Bonus (-41) -41 TOTAL SCORE: 4139 Bonus ------- High Alert Combat Kills 8 Follower Combat Kills 47 Aligned with FarCom 300 Friendly Fire -396 Cogmind --------- Core Integrity 0/400 Matter 255/300 Energy 94/100 System Corruption 0% Temperature Cool (0) Movement Core (550) Ox10 Location -9/Exiles Parts ------- > --- POWER (1) -------- (None) > --- PROPULSION (2) --- (None) > --- UTILITY (4) ------ High-capacity Storage Unit Advanced Weapon Cycler > --- WEAPON (2) ------- (None) > --- INVENTORY (12) --- Advanced Myomer Leg Advanced Myomer Leg Gravity Neutralizing Apparatus Improved EM Shotgun Improved EM Shotgun Improved EM Shotgun Shotgun Shotgun Improved Assault Rifle 8R-AWN's Boregun Grenade Launcher Peak State ------------ > --- POWER ------------ Improved Ion Engine > --- PROPULSION ------- Advanced Myomer Leg Advanced Myomer Leg > --- UTILITY ---------- Experimental Heat Sink High-capacity Storage Unit Gravity Neutralizing Apparatus Advanced Weapon Cycler > --- WEAPON ----------- Improved EM Shotgun 8R-AWN's Boregun > --- INVENTORY -------- Light Treads Light Treads Gravity Neutralizing Apparatus Improved EM Shotgun Heavy Assault Rifle Heavy Assault Rifle Shotgun Shotgun Improved Assault Rifle Grenade Launcher [Rating: 55] Favorites ----------- Power Improved Ion Engine Engine Improved Ion Engine Propulsion Light Treads Treads Light Treads Leg Advanced Myomer Leg Wheel Compact Wheel Utility Large Storage Unit Device Heat Sink Storage Large Storage Unit Processor Armor Integrity Analyzer Protection Heavy Armor Plating Weapon Improved EM Shotgun Energy Gun Improved EM Shotgun Energy Cannon Beam Cannon Ballistic Gun Shotgun Launcher Grenade Launcher Slashing Weapon Mining Claw Build | -11 -10 -10 -9 -9 -9 ------- Run | Scr Mat Min Mat Min Exi Slots Evolved 2 | . . . 2 . . Power . | . . . . . . Propulsion . | . . . . . . Utility 2 | . . . 2 . . Weapon . | . . . . . . Parts Attached 81 | 7 15 4 24 2 29 Power 7 | 1 2 1 2 . 1 Engine 7 | 1 2 1 2 . 1 Core . | . . . . . . Reactor . | . . . . . . Propulsion 22 | 2 3 . 9 . 8 Treads 17 | 1 1 . 9 . 6 Leg 2 | . . . . . 2 Wheel 3 | 1 2 . . . . Hover . | . . . . . . Flight . | . . . . . . Utility 25 | 2 4 1 8 . 10 Device 5 | . . . 1 . 4 Storage 10 | 2 4 1 2 . 1 Processor 2 | . . . 1 . 1 Hackware . | . . . . . . Protection 8 | . . . 4 . 4 Artifact . | . . . . . . Weapon 27 | 2 6 2 5 2 10 Energy Gun 8 | 2 . . 4 1 1 Energy Cannon 6 | . 2 1 1 . 2 Ballistic Gun 10 | . 4 . . . 6 Ballistic Cannon . | . . . . . . Launcher 1 | . . . . . 1 Special Weapon . | . . . . . . Impact Weapon . | . . . . . . Slashing Weapon 2 | . . 1 . 1 . Piercing Weapon . | . . . . . . Special Melee Weapon . | . . . . . . Unidentified Prototypes 5 | . . . 1 . 4 Parts Lost 19 | . 3 . 2 . 14 Power 4 | . 1 . 1 . 2 Propulsion 6 | . 1 . . . 5 Utility 5 | . . . 1 . 4 Weapon 4 | . 1 . . . 3 Highest Loss Streak 7 | . 2 . 1 . 7 Average Slot Usage (%) 91 | . 99 100 95 100 77 Engine 11 | . 14 14 11 11 10 Treads 19 | . 14 14 21 22 21 Wheel 4 | . 14 14 . . . Device 2 | . . . 6 . 2 Storage 22 | . 28 28 23 33 16 Processor 2 | . . . . . 6 Protection 7 | . . . 10 11 9 Energy Gun 8 | . 8 . 16 21 2 Energy Cannon 3 | . 4 13 3 . . Ballistic Gun 7 | . 15 14 2 . 7 Naked Turns . | . . . . . . Heaviest Build 80 | 14 56 61 80 80 80 Greatest Support 72 | 20 16 16 40 40 72 Greatest Overweight (x) 13 | 1 5 3 4 1 13 Average Overweight (x) 1 | . 2 2 1 1 . Largest Inventory Capacity 24 | 8 18 18 24 24 24 Average Capacity 16 | 6 14 17 18 24 15 Most Carried 24 | 8 16 18 24 24 24 Average Carried 16 | 4 13 17 18 24 14 Final Capacity 24 | 8 16 18 24 24 12 Final Carried 24 | 8 16 18 24 24 11 Class Distribution -------------------- 50% | Mutant 33% | Scavenger-Mutant 16% | Hauler-Mutant Dominant Class ---------------- Mutant | -10/Materials Mutant | -10/Mines Scavenger-Mutant | -9/Materials Hauler-Mutant | -9/Mines Scavenger-Mutant | -9/Exiles Resources | -11 -10 -10 -9 -9 -9 ----------- Run | Scr Mat Min Mat Min Exi Matter Collected 1937 | 270 529 20 565 10 543 Remotely . | . . . . . . Salvage Created 2963 | 65 971 . 1630 165 132 Parts 164 | 3 50 . 94 10 7 Haulers Intercepted 7 | . 2 . 5 . . Recyclers Shooed 3 | . 2 . 1 . . Parts Field Recycled . | . . . . . . Retrieved Matter . | . . . . . . Parts Self-Destructed . | . . . . . . Prevented . | . . . . . . Kills | -11 -10 -10 -9 -9 -9 ------- Run | Scr Mat Min Mat Min Exi Combat Hostiles Destroyed 55 | . 22 . 24 3 6 Guns 40 | . 18 . 18 3 1 Cannons 7 | . 4 . 3 . . AOE 7 | . . . 2 . 5 Classes Destroyed 10 | 1 7 . 1 . 1 Worker 1 | . 1 . . . . Builder 2 | . 1 . 1 . . Hauler 7 | . 2 . 5 . . Recycler 7 | 1 1 . 5 . . Operator 1 | . 1 . . . . Watcher 3 | . 2 . 1 . . Swarmer 14 | . 6 . 8 . . Grunt 28 | . 16 . 9 3 . Sentry 7 | . . . 7 . . Assembled 7 | . . . . . 7 Best Kill Streak 6 | 1 6 . 5 3 5 Combat Bots Only 6 | . 6 . 5 3 5 Max Kills in Single Turn 2 | 1 1 . 2 1 2 Gunslinging 1 | . . . 1 . . Exploded 2 | . . . 1 . 2 Melee . | . . . . . . Uniques/NPCs Destroyed 1 | . . . . . 1 8R-AWN (-9/Exiles) Combat | -11 -10 -10 -9 -9 -9 -------- Run | Scr Mat Min Mat Min Exi Damage Taken 4063 | . 695 . 999 113 2256 Core 529 | . 86 . 83 14 346 Absorbed by Shields . | . . . . . . Core Remaining (%) 82 | 100 . 65 . . . Volleys Fired 275 | 1 103 . 83 6 82 Largest 2 | 2 2 . 2 2 2 Hottest 250 | 90 83 . 105 90 250 Shots Fired 488 | 2 196 . 153 12 125 Gun 421 | 2 175 . 116 12 116 Cannon 61 | . 21 . 37 . 3 Launcher 6 | . . . . . 6 Special . | . . . . . . Kinetic 222 | . 121 . 15 . 86 Thermal 117 | 2 75 . 37 . 3 Explosive 6 | . . . . . 6 Electromagnetic 143 | . . . 101 12 30 Robot Hit Streak 25 | 2 25 . 13 7 10 Robot Miss Streak 3 | . 3 . 3 2 2 Penetration Max . | . . . . . . Secondary Targets 5 | . 2 . 3 . . Max Gunslinging Chain 1 | . 1 . 1 . . Shots Hit Robots 363 | 2 137 . 119 12 93 Core Hits 157 | 2 54 . 62 8 31 Critical Hits 6 | . 1 . 4 . 1 Critical Kills 3 | . 1 . 2 . . Critical Parts Destroyed 2 | . . . 2 . . Melee Attacks 2 | . . 1 . 1 . Impact . | . . . . . . Slashing 2 | . . 1 . 1 . Piercing . | . . . . . . Sneak Attacks . | . . . . . . Combat Hostiles . | . . . . . . Follow-up Attacks . | . . . . . . Damage Inflicted 5742 | 24 1758 . 2158 269 1533 Guns 4117 | 24 1536 . 1402 187 968 Cannons 704 | . 217 . 487 . . Explosions 834 | . . . 269 . 565 Melee 82 | . . . . 82 . Ramming 5 | . 5 . . . . Kinetic 2194 | . 1094 . 149 . 951 Thermal 1554 | 24 659 . 756 . 115 Explosive 450 | . . . . . 450 Electromagnetic 1457 | . . . 1253 187 17 Impact . | . . . . . . Slashing 82 | . . . . 82 . Piercing . | . . . . . . Highest Corruption 1 | . 1 1 . . . Average Corruption 1 | . 1 1 . . . Corruption Purged . | . . . . . . Effects 8 | . 4 4 . . . Message Errors 6 | . 3 3 . . . Data Loss (minor) 1 | . . 1 . . . Targeting Errors 1 | . 1 . . . . Overload Shots . | . . . . . . Overflow Damage 14 | . . . 13 . 1 Projectiles . | . . . . . . Explosions 14 | . . . 13 . 1 Melee . | . . . . . . Knockbacks . | . . . . . . Impact . | . . . . . . Kinetic . | . . . . . . Secondary . | . . . . . . Self-Inflicted Damage 67 | . 2 . 65 . . Shots 3 | . . . 3 . . Rammed 1 | . 1 . . . . Targets Rammed 1 | . 1 . . . . Kicked . | . . . . . . Crushed . | . . . . . . Highest Temperature 242 | 30 129 . 237 210 242 Average Temperature 42 | 17 33 . 43 101 126 Received Heat Transfer 615 | . 234 . 318 63 . Siege Activations . | . . . . . . Robots Corrupted . | . . . . . . Combat Hostiles . | . . . . . . Parts Fried 8 | . . . 7 1 . Impact Corruptions . | . . . . . . Robots Melted 1 | . . . 1 . . Combat Hostiles 1 | . . . 1 . . Parts Melted 2 | . 2 . . . . Heat Transferred 3532 | 62 1739 . 1399 . 332 Parts Sabotaged . | . . . . . . Parts Stolen . | . . . . . . Parts Stripped . | . . . . . . Power Chain Reactions 7 | . . . 5 1 1 Missiles Intercepted . | . . . . . . Alert | -11 -10 -10 -9 -9 -9 ------- Run | Scr Mat Min Mat Min Exi Peak Influence 429 | 5 407 122 429 109 . Average Influence 120 | 2 160 37 148 76 . Maximum Alert Level 2 | . 2 . 2 . . Low Security (%) 82 | 100 69 100 77 100 . Level 1 15 | . 23 . 21 . . Level 2 1 | . 7 . . . . Level 3 . | . . . . . . Level 4 . | . . . . . . Level 5 . | . . . . . . High Security . | . . . . . . Max Security . | . . . . . . Squads Dispatched 10 | . 5 . 5 . . Investigation 6 | . 3 . 3 . . Extermination . | . . . . . . Reinforcement 4 | . 2 . 2 . . Assault . | . . . . . . Garrison . | . . . . . . Intercept . | . . . . . . Construction Impeded . | . . . . . . Haulers Reinforced . | . . . . . . Stealth | -11 -10 -10 -9 -9 -9 --------- Run | Scr Mat Min Mat Min Exi Distress Signals 1 | . 1 . . . . Communications Jammed . | . . . . . . Distress Signals . | . . . . . . Times Spotted 107 | . 39 1 44 4 19 Peak Tracking Total 7 | . 4 1 6 3 7 Tactical Retreats 8 | . 1 . 2 1 4 Traps | -11 -10 -10 -9 -9 -9 ------- Run | Scr Mat Min Mat Min Exi Traps Triggered 1 | . 1 . . . . Indirectly . | . . . . . . Trap Hack Attempts . | . . . . . . Triggered . | . . . . . . Disarmed . | . . . . . . Reprogrammed . | . . . . . . Reused . | . . . . . . Traps Extracted . | . . . . . . Installed . | . . . . . . Triggered . | . . . . . . Machines | -11 -10 -10 -9 -9 -9 ---------- Run | Scr Mat Min Mat Min Exi Machines Disabled 8 | . . . 1 1 6 Max in Single Turn 2 | . . . 1 1 2 Machines Sabotaged . | . . . . . . Garrisons Compromised . | . . . . . . Overloaded Fab Kills . | . . . . . . Fab Network Shutdowns . | . . . . . . Hacking | -11 -10 -10 -9 -9 -9 --------- Run | Scr Mat Min Mat Min Exi Machines Accessed 19 | . 6 . 12 . 1 Terminals 14 | . 5 . 9 . . Fabricators . | . . . . . . Repair Stations 1 | . . . 1 . . Recycling Units 3 | . 1 . 2 . . Scanalyzers . | . . . . . . Garrison Access . | . . . . . . Total Hacks 55 | . 16 . 38 . 1 Successful 32 | . 9 . 22 . 1 Failed 21 | . 6 . 15 . . Catastrophic 2 | . . . 2 . . Database Lockouts 2 | . 1 . 1 . . Manual 37 | . 12 . 24 . 1 Terminals 44 | . 15 . 29 . . Fabricators . | . . . . . . Repair Stations 5 | . . . 5 . . Recycling Units 5 | . 1 . 4 . . Scanalyzers . | . . . . . . Garrison Access . | . . . . . . Terminal Hacks 19 | . 6 . 12 . 1 Part Schematic 2 | . 2 . . . . Robot Analysis 3 | . 2 . 1 . . Prototype ID Bank 4 | . 1 . 3 . . Branch Access Points 1 | . . . 1 . . Alert Level 1 | . . . 1 . . Unreport Threat 2 | . . . 2 . . Recall Investigation 3 | . . . 3 . . Recall Reinforcements 2 | . 1 . 1 . . EX-Prototype ID Bank 1 | . . . . . 1 Fabricator Hacks . | . . . . . . Repair Station Hacks 4 | . . . 4 . . Scan Component 2 | . . . 2 . . Repair 2 | . . . 2 . . Recycling Unit Hacks . | . . . . . . Scanalyzer . | . . . . . . Garrison Access Hacks . | . . . . . . Unauthorized Hacks 9 | . 3 . 6 . . Terminals 6 | . 2 . 4 . . Track 1 | . . . 1 . . Botnet 4 | . 2 . 2 . . Operators 1 | . . . 1 . . Fabricators . | . . . . . . Repair Stations . | . . . . . . Recycling Units 3 | . 1 . 2 . . Tunnel 3 | . 1 . 2 . . Scanalyzers . | . . . . . . Garrison Access . | . . . . . . Data Cores Recovered . | . . . . . . Used . | . . . . . . Hacking Detections 14 | . 5 . 9 . . Full Trace Events . | . . . . . . Feedback Events . | . . . . . . Feedback Blocked . | . . . . . . Robot Schematics Acquired . | . . . . . . Robots Built . | . . . . . . Matter . | . . . . . . Time . | . . . . . . Total Robot Build Rating . | . . . . . . Part Schematics Acquired 2 | . 2 . . . . Parts Built . | . . . . . . Matter . | . . . . . . Time . | . . . . . . Total Part Build Rating . | . . . . . . Parts Repaired 2 | . . . 2 . . Time 77 | . . . 77 . . Parts Recycled . | . . . . . . Recycled Matter . | . . . . . . Retrieved Matter . | . . . . . . Retrieved Components . | . . . . . . Parts Scanalyzed . | . . . . . . Part Schematics Acquired . | . . . . . . Parts Damaged . | . . . . . . Bothacking | -11 -10 -10 -9 -9 -9 ------------ Run | Scr Mat Min Mat Min Exi Used RIF Installer . | . . . . . . Robots Hacked . | . . . . . . Non-combat . | . . . . . . Combat . | . . . . . . Robot Hacks Applied . | . . . . . . Relay Couplers Released . | . . . . . . Robots Rewired . | . . . . . . Allies Hacked . | . . . . . . Hacks Repelled . | . . . . . . Allies | -11 -10 -10 -9 -9 -9 -------- Run | Scr Mat Min Mat Min Exi Total Allies 3 | . . 3 . . . Largest Group 3 | . . 3 3 . . Highest-Rated Group 40 | . . 40 40 . . Highest-Rated Ally 16 | . . 16 16 . . Total Orders . | . . . . . . Ally Attacks 22 | . . . 22 . . Total Damage 205 | . . . 205 . . Kills 5 | . . . 5 . . Allies Corrupted . | . . . . . . Allies Melted . | . . . . . . Intel | -11 -10 -10 -9 -9 -9 ------- Run | Scr Mat Min Mat Min Exi Robot Analysis Total 3 | . 2 . 1 . . Derelict Logs Recovered 1 | . . 1 . . . Drone Launches . | . . . . . . Drone Recoveries . | . . . . . . Exploration | -11 -10 -10 -9 -9 -9 ------------- Run | Scr Mat Min Mat Min Exi Turns Passed 9021 | 91 1372 1291 2864 479 2924 Spaces Moved 4898 | 53 863 976 1305 238 1463 Core 3 | 1 . . . . 2 Treads 2921 | 33 . . 1227 238 1423 Legs 38 | . . . . . 38 Wheels 1936 | 19 863 976 78 . . Hover . | . . . . . . Flight . | . . . . . . Fastest Speed 50 | 50 90 120 130 180 120 Average Speed 156 | 131 110 129 177 180 179 Slowest Speed 700 | 160 130 130 180 180 700 Overloaded Moves . | . . . . . . Propulsion Burnouts . | . . . . . . Robots Hopped . | . . . . . . Cave-ins Triggered . | . . . . . . Exploration Rate (%) 63 | 3 97 101 74 36 71 Regions Visited 5 Branch Regions 3 Pre-discovered Areas 4 | . 1 . 2 1 . Known Exits Taken 1 | . . . 1 . . Unknown Exits Taken 4 | 1 1 1 . 1 . Scrap Searched 1 | . . 1 . . . Spaces Dug 1 | . . 1 . . . Terrain Destroyed 44 | . . 1 16 1 26 Melee 1 | . . 1 . . . Projectile . | . . . . . . AOE 43 | . . . 16 1 26 Actions | -11 -10 -10 -9 -9 -9 --------- Run | Scr Mat Min Mat Min Exi Total 5805 | 68 1100 1000 1712 274 1651 Wait 382 | . 78 9 249 28 18 Move 4893 | 52 862 975 1304 237 1463 Hop . | . . . . . . Pick Up 85 | 8 21 6 23 . 27 Fast Attach 29 | 7 3 . 6 . 13 Attach 18 | . 3 . 4 . 11 Detach 5 | . . . 1 . 4 Swap 34 | . 9 4 14 2 5 Drop 81 | . 20 5 28 . 28 Fire 275 | 1 103 . 83 6 82 Melee 2 | . . 1 . 1 . Ram 1 | . 1 . . . . Kick . | . . . . . . Crush . | . . . . . . Escape Stasis . | . . . . . . Rewire . | . . . . . . Trap . | . . . . . . Miscellaneous . | . . . . . . Route ------- -11/Scrapyard -10/Materials (discovered 5 exits: *Mat x3 / [*Min x2]) -10/Mines (discovered 2 exits: *Mat x2) -9/Materials (discovered 5 exits: [*Mat x2] / *Min x2 / *Sto) -9/Mines -9/Exiles (discovered 1 exit: [*Min]) History --------- Turn | Location | Event 9 | -11/Scrapyard | Discovered new exit (range 16) 92 | -11/Scrapyard | Entered Materials 309 | -10/Materials | Discovered new exit (range 4) 317 | -10/Materials | Build established: Mutant 554 | -10/Materials | Discovered new exit (range 11) 659 | -10/Materials | Discovered new exit (range 8) 687 | -10/Materials | Discovered new exit (range 3) 856 | -10/Materials | Discovered new exit (range 14) 1063 | -10/Materials | Central database locked down 1464 | -10/Materials | Entered Mines 1465 | -10/Mines | Met a Derelict bent on vengeance 1469 | -10/Mines | Joined a pair of Derelicts in attacking an 0b10 outpost 1534 | -10/Mines | Learned Materials stockpile data 2061 | -10/Mines | Discovered new exit (range 10) 2348 | -10/Mines | Discovered new exit (range 11) 2465 | -10/Mines | Assisted by bots powering up and referring to "LRC-V3" 2755 | -10/Mines | Entered Materials 2755 | -9/Materials | Accompanied by 3 allies 2755 | -9/Materials | Evolved 2 slots: Utility x2 2930 | -9/Materials | Discovered new exit (range 10) 3137 | -9/Materials | Discovered new exit (range 4) 3206 | -9/Materials | Central database locked down 3657 | -9/Materials | Repaired Imp. EM Shotgun? 3740 | -9/Materials | Repaired Beam Cannon 3847 | -9/Materials | Build established: Scavenger-Mutant 4237 | -9/Materials | Discovered new exit (range 16) 4846 | -9/Materials | Identified exit to Mines 4846 | -9/Materials | Identified exit to Storage 5619 | -9/Materials | Entered Mines 5625 | -9/Mines | Build established: Hauler-Mutant 5873 | -9/Mines | Assembled infested the area 5895 | -9/Mines | Learned location of Storage (-9) 6089 | -9/Mines | Discovered new exit (range 5) 6098 | -9/Mines | Entered Exiles 6142 | -9/Exiles | Met 8R-AWN 6174 | -9/Exiles | Met EX-HEX 6223 | -9/Exiles | Met EX-BIN 6259 | -9/Exiles | Aligned with FarCom system 6260 | -9/Exiles | Given EX-Vault access code 6302 | -9/Exiles | Opened EX-Vault 6316 | -9/Exiles | Found Firepult 6359 | -9/Exiles | Warned to stay clear of 0b10 Research branches 6484 | -9/Exiles | Met EX-DEC 6826 | -9/Exiles | Discovered new exit (range 14) 7152 | -9/Exiles | Build established: Mutant 7976 | -9/Exiles | Build established: Scavenger-Mutant 8408 | -9/Exiles | Attacked by the Exiles 8486 | -9/Exiles | Lost 3 parts (1p1n1u) 8545 | -9/Exiles | Core integrity fell below 50% 8592 | -9/Exiles | Lost 4 parts (1n1u2w) 8617 | -9/Exiles | Destroyed 8R-AWN 8639 | -9/Exiles | Found Prototype Ballistic Gun 8639 | -9/Exiles | Identified 8R-AWN's Boregun 9021 | -9/Exiles | Core integrity fell below 20% 9022 | -9/Exiles | Destroyed by DAS Turret with DAS Cannon Last Messages --------------- 08695_ Dropped Exp. Heat Sink. 08705_ Dropped Adv. Myomer Leg. 08705_ Acquired Lgt. Treads. 08707_ Dropped Adv. Myomer Leg. 08708_ Acquired Adv. Myomer Leg. 08711_ Dropped Adv. Myomer Leg. 08711_ Acquired Adv. Myomer Leg. 08717_ Dropped Gravity Neutralizing Apparatus. 08718_ Acquired Adv. Myomer Leg. 08818_ Dropped Hvy. Assault Rifle. 08822_ Acquired Firepult. 08928_ Acquired Exp. Heat Sink. 08976_ Lgt. Armor Plating destroyed. 08977_ Lgt. Treads destroyed. 08979_ Machine disabled. 08997_ Imp. Ion Engine destroyed. 08997_ Lgt. Treads destroyed. 09016_ Firepult destroyed. 09016_ Exp. Heat Sink destroyed. 09016_ Lgt. Treads destroyed. Map ----- +----------------------------------------------------+ | ????????????????????????????????# #?#"""""""#? | | ???????????????????????????????## ###"" """"#? | | ######?????????????????????????#" """"#? | | !!! "#?????????????????????????#" """#? | | "#?????????????????????????#" """#? | | "#?????????????????????????#" """#? | | ""#????????????####?????????#" """#? | | ""#???????????? """????????#" """## | | ""#????????????" """#???????## """"" | | #?????????????"" ?????????# """## | | #????????????#"" ?????????#" "X" """"" | | ##???????????#"" "#????????#" """ # | | "#???????????? ""?????????#" """""""""#? | | ###???????????" "?????????##" ###########? | | ##??????????# #????????##"" #??????????? | | "" ######???### ###?######"" #??????????? | | #" """#####X# #"###""""""" #######????? | | #" """""" " "" ## # ###### | | #"# "" """ " # # "" " | | #### " " " | | ???### | | ?????### | | ???????## | | ????????## | | ?????????##" | | ??????????#""" @ """""" | | ?????????##" ######""" | | ?????????#"" ""##????#####""" | | ?????????#""" ""##?????????##""" | | ????????#""" """##???????????#"""" | | ????????#""" ""#???????????##"" | | ????????#"" ########??####"""" | | ????????#""" ## ####""" | | ????????#"" """" | | ????????##"" t | | ?????????#""" | | ?????????## " | | ??????????#" " "" " | | ??????????#"""" ""## ##""" " " ""# | | ??????????#"" ""#### ######""" """ | | ???????????" """"##??# #????###""""## | | ???????????""" """#??## ####???######? | | ???????????# ""##??#! " #?????????? | | ???????????#"" """##???#" ! #?????????? | | ?????????????""" #?????#" "#?????????? | | ??????????????"""" ##?????#!!""!"#?????????? | | ???????????????# #??????########?????????? | | ????????????????#### #????????????????????????? | | ???????????????????## ?????????????????????????? | | ????????????????????# ?????????????????????????? | +----------------------------------------------------+ Best States ------------- Heat Dissipation 54 Energy Generation 12 Energy Capacity 265 Matter Stores 300 Matter Capacity 300 Sight Range 20 Terrain Scan Density 10 Additional Mass Support 12 Armor Coverage 600 Weapon Cycling 25 Evasion (%) 44 Armor Integrity Analysis 33 Recoil Reduction 2 Item Schematics ----------------- Med. Storage Unit | -10/Materials | Hacked Lrg. Storage Unit | -10/Materials | Hacked Robot Schematics ------------------ None Fabricated ------------ Nothing Alien Tech Used ----------------- None Achievements -------------- None Challenges ------------ None Game ------ Seed CompositeGravitonTrap Manual? 0 Play Time 00:48:27 Cumulative 220.4 hours Start 2020.09.01 @ 20:33:09 End 2020.09.01 @ 21:32:44 Sessions 1 Manual Loads 0 Difficulty Rogue Special Mode None Game No. 108 Rogue 107 Adventurer 1 Explorer 0 Win Type - Total 11 Types 7/1/2/1/0/0/0 Lore% 86 Gallery% 88 Achievement% 72 Wizard Run 0 Options --------- ASCII 1 Keyboard 1 Movement Numpad Keybinds 0 Fullscreen 2 Font 24/Smallcaps Map View 76x50 Tactical HUD 1 Map Filters NONE Filters NONE Steam 1 RUN: 4f93eabe-fb7e-4ea6-851c-1d54393d4773